lending/lending_fUSD_20250917
["ID","MTS","AMOUNT","RATE_DAILY","PERIOD"]
[385887167,1758097833027,-150.0,0.00024534,2]
[385887168,1758097833037,-150.0,0.00024534,2]
[385887169,1758097833047,-150.0,0.00024534,2]
[385887170,1758097833057,-150.00000001,0.00024534,2]
[385887171,1758097833068,-150.0,0.00024534,2]
[385887172,1758097833078,-403.8,0.00024591,2]
[385887173,1758097833088,-500.0,0.000248,2]
[385887174,1758097833098,-271.51,0.00024801,2]
[385887175,1758097833108,-556.58,0.0002481,2]
[385887176,1758097833118,-587.0,0.00024847,2]
[385887177,1758097833129,-200.0,0.00024885,2]
[385887178,1758097833139,-500.0,0.00024885,2]
[385887179,1758097833149,-465.49958894,0.00024885,2]
[385887180,1758097833159,-500.0,0.00024885,2]
[385887181,1758097833169,-500.0,0.00024885,2]
[385887182,1758097833179,-500.0,0.00024885,2]
[385887183,1758097833189,-500.0,0.00024885,2]
[385887184,1758097833199,-500.0,0.00024885,2]
[385887185,1758097833209,-500.0,0.00024885,2]
[385887186,1758097833219,-151.0,0.00024885,2]
[385887187,1758097833230,-151.0,0.00024885,2]
[385887188,1758097833241,-200.0,0.00024885,2]
[385887189,1758097833251,-151.0,0.00024885,2]
[385887190,1758097833261,-467.51415721,0.00024885,2]
[385887191,1758097833272,-151.0,0.00024885,2]
[385887192,1758097833282,-300.47221972,0.00024885,2]
[385887193,1758097833292,-151.0,0.00024885,2]
[385887194,1758097833302,-151.0,0.00024885,2]
[385887195,1758097833312,-151.0,0.00024885,2]
[385887196,1758097833322,-151.0,0.00024885,2]
[385887197,1758097833332,-151.0,0.00024885,2]
[385887198,1758097833342,-151.0,0.00024885,2]
[385887199,1758097833352,-151.0,0.00024885,2]
[385887200,1758097833363,-151.0,0.00024885,2]
[385887201,1758097833373,-151.0,0.00024885,2]
[385887202,1758097833383,-151.0,0.00024885,2]
[385887203,1758097833393,-151.0,0.00024885,2]
[385887204,1758097833403,-151.0,0.00024885,2]
[385887205,1758097833413,-151.0,0.00024885,2]
[385887206,1758097833423,-151.0,0.00024885,2]
[385887207,1758097833433,-151.0,0.00024885,2]
[385887208,1758097833443,-298.44881799,0.00024885,2]
[385887209,1758097833453,-4596.47,0.00024887,2]
[385887210,1758097833463,-5877.03008721,0.00024896,2]
[385887211,1758097833474,-151.79,0.000249,2]
[385887212,1758097833484,-18595.27286953,0.000249,2]
[385887213,1758097833495,-1939.89,0.00025075,2]
[385887214,1758097833505,-2351.0,0.00025084,2]
[385887215,1758097833515,-250.0,0.0002509,2]
[385887216,1758097833525,-247.47,0.00025181,2]
[385887217,1758097833535,-157.17,0.00025238,2]
[385887218,1758097833545,-188.24,0.00025267,2]
[385887219,1758097833556,-202.0,0.000255,5]
[385887220,1758097833566,-1756.43765982,0.00025544,2]
[385887221,1758097833577,-164.64,0.00025651,2]
[385887222,1758097833588,-4327.562839,0.00025685,2]
[385887223,1758097833601,-235.66,0.00025711,2]
[385887224,1758097833611,-150.0,0.00025711,7]
[385887225,1758097833623,-3218.47,0.00025725,2]
[385887226,1758097833634,-168.29901338,0.00025729,2]
[385887227,1758097833645,-160.0,0.00025729,2]
[385887228,1758097833655,-2304.8069785,0.00025729,2]
[385887229,1758097833665,-3000.0,0.00025729,2]
[385887230,1758097833675,-322.6107,0.00025729,2]
[385887231,1758097833685,-500.0,0.00025729,2]
[385887232,1758097833696,-1000.0,0.00025729,2]
[385887233,1758097833706,-500.0,0.00025729,2]
[385887234,1758097833716,-1000.0,0.00025729,2]
[385887235,1758097833726,-500.0,0.00025729,2]
[385887236,1758097833737,-500.0,0.00025729,2]
[385887237,1758097833748,-637.96501181,0.00025729,2]
[385887238,1758097833758,-1000.0,0.00025729,2]
[385887239,1758097833768,-670.58624095,0.00025729,2]
[385887240,1758097833778,-1000.0,0.00025729,2]
[385887241,1758097833788,-231.5275678,0.00025729,2]
[385887242,1758097833798,-151.0,0.00025729,2]
[385887243,1758097833808,-151.0,0.00025729,2]
[385887244,1758097833817,-500.0,0.00025729,2]
[385887245,1758097833827,-500.0,0.00025729,2]
[385887246,1758097833837,-1000.0,0.00025729,2]
[385887247,1758097833847,-500.0,0.00025729,2]
[385887248,1758097833857,-151.0,0.00025729,2]
[385887249,1758097833867,-1000.0,0.00025729,2]
[385887250,1758097833878,-151.0,0.00025729,2]
[385887251,1758097833888,-500.0,0.00025729,2]
[385887252,1758097833898,-1000.0,0.00025729,2]
[385887253,1758097833908,-500.0,0.00025729,2]
[385887254,1758097833919,-1000.0,0.00025729,2]
[385887255,1758097833939,-500.0,0.00025729,2]
[385887256,1758097833951,-1000.0,0.00025729,2]
[385887257,1758097833961,-1000.0,0.00025729,2]
[385887258,1758097833971,-500.0,0.00025729,2]
[385887259,1758097833982,-1000.0,0.00025729,2]
[385887260,1758097833994,-500.0,0.00025729,2]
[385887261,1758097834006,-1000.0,0.00025729,2]
[385887262,1758097834016,-500.0,0.00025729,2]
[385887263,1758097834027,-536.44039391,0.00025729,2]
[385887264,1758097834036,-500.0,0.00025729,2]
[385887265,1758097834045,-500.0,0.00025729,2]
[385887266,1758097834055,-500.0,0.00025729,2]
[385887267,1758097834065,-500.0,0.00025729,2]
[385887268,1758097834076,-257.91778498,0.00025729,2]
[385887269,1758097834088,-151.0,0.00025729,2]
[385887270,1758097834098,-151.0,0.00025729,2]
[385887271,1758097834108,-151.0,0.00025729,2]
[385887272,1758097834119,-151.0,0.00025729,2]
[385887273,1758097834130,-151.0,0.00025729,2]
[385887274,1758097834140,-151.0,0.00025729,2]
[385887275,1758097834150,-151.0,0.00025729,2]
[385887276,1758097834160,-151.0,0.00025729,2]
[385887277,1758097834170,-151.0,0.00025729,2]
[385887278,1758097834182,-151.0,0.00025729,2]
[385887279,1758097834192,-151.0,0.00025729,2]
[385887280,1758097834203,-151.0,0.00025729,2]
[385887281,1758097834213,-151.0,0.00025729,2]
[385887282,1758097834224,-999.99,0.00025786,2]
[385887283,1758097834235,-9999.99,0.00025786,2]
[385887284,1758097834246,-150.99,0.00025786,2]
[385887285,1758097834257,-150.0,0.00025832,2]
[385887286,1758097834267,-500.0,0.00025832,2]
[385887287,1758097834278,-500.0,0.00025832,2]
[385887288,1758097834288,-500.0,0.00025832,2]
[385887289,1758097834298,-150.0,0.00025832,2]
[385887290,1758097834308,-500.0,0.00025832,2]
[385887291,1758097834319,-150.0,0.00025832,2]
[385887292,1758097834329,-500.0,0.00025832,2]
[385887293,1758097834339,-421.0,0.00025833,2]
[385887294,1758097834349,-512.0,0.00025833,2]
[385887295,1758097834359,-2744.0,0.00025833,2]
[385887296,1758097834369,-150.0,0.00025833,2]
[385887297,1758097834379,-500.0,0.00025833,2]
[385887298,1758097834389,-774.0,0.00025833,2]
[385887299,1758097834399,-500.0,0.00025833,2]
[385887300,1758097834409,-252.67640606,0.00025833,2]
[385887301,1758097834419,-221.04,0.00025834,2]
[385887302,1758097834429,-538.0,0.000259,2]
[385887303,1758097834440,-2139.10562299,0.00025925,2]
[385887304,1758097834455,-693.10460756,0.00025925,2]
[385887305,1758097834496,-174.9028783,0.00025785,2]
[385887306,1758097834507,-185.55292244,0.00025785,2]
[385887307,1758097834518,-1495.35260845,0.00025925,2]
[385887308,1758097834528,-3368.42977314,0.00026,2]
[385887309,1758097834539,-15723.83474168,0.00026,7]
[385887310,1758097834549,-15000.0,0.00026,2]
[385887311,1758097834559,-500.0,0.00026106,2]
[385887312,1758097834569,-500.0,0.00026106,2]
[385887313,1758097834580,-500.0,0.00026106,2]
[385887314,1758097834590,-500.0,0.00026106,2]
[385887315,1758097834600,-421.0,0.00026107,2]
[385887316,1758097834612,-512.0,0.00026107,2]
[385887317,1758097834623,-2744.0,0.00026107,2]
[385887318,1758097834633,-150.0,0.00026107,2]
[385887319,1758097834643,-500.0,0.00026107,2]
[385887320,1758097834653,-774.0,0.00026107,2]
[385887321,1758097834664,-500.0,0.00026107,2]
[385887322,1758097834674,-4327.562839,0.00026165,2]
[385887323,1758097834685,-312.46068,0.000262,2]
[385887324,1758097834695,-151.0,0.00026277,2]
[385887325,1758097834706,-151.0,0.00026277,2]
[385887326,1758097834716,-151.0,0.00026277,2]
[385887327,1758097834727,-151.0,0.00026277,2]
[385887328,1758097835007,-2000.0,0.000263,2]
[385887329,1758097835028,-500.0,0.0002638,2]
[385887330,1758097835038,-500.0,0.0002638,2]
[385887331,1758097835047,-500.0,0.0002638,2]
[385887332,1758097835056,-500.0,0.0002638,2]
[385887333,1758097835065,-421.0,0.00026381,2]
[385887334,1758097835074,-512.0,0.00026381,2]
[385887335,1758097835083,-2744.0,0.00026381,2]
[385887336,1758097835092,-150.0,0.00026381,2]
[385887337,1758097835101,-500.0,0.00026381,2]
[385887338,1758097835111,-774.0,0.00026381,2]
[385887339,1758097835123,-500.0,0.00026381,2]
[385887340,1758097835134,-1604.21072324,0.00026381,2]
[385887341,1758097835143,-4327.562839,0.00026405,2]
[385887342,1758097835153,-6670.03694,0.0002641,2]
[385887343,1758097835162,-500.0,0.00026433,2]
[385887344,1758097835171,-501.19490914,0.00026433,2]
[385887345,1758097835180,-232.2771,0.00026477,2]
[385887346,1758097835189,-10000.0,0.000265,2]
[385887347,1758097835199,-300.0,0.000265,9]
[385887348,1758097835208,-500.0,0.00026513,2]
[385887349,1758097835217,-1500.0,0.00026551,2]
[385887350,1758097835227,-500.0,0.00026552,2]
[385887351,1758097835236,-11006.53582101,0.00026552,2]
[385887352,1758097835246,-4035.1109,0.00026552,2]
[385887353,1758097835255,-2123.2964,0.00026552,2]
[385887354,1758097835264,-2500.0,0.00026552,2]
[385887355,1758097835273,-608.53703759,0.00026555,2]
[385887356,1758097835282,-994.52915539,0.00026564,2]
[385887357,1758097835291,-33253.552,0.00026577,2]
[385887358,1758097835300,-298.4635,0.00026577,2]
[385887359,1758097835309,-150.0,0.00026592,2]
[385887360,1758097835320,-150.0,0.00026592,2]
[385887361,1758097835329,-500.0,0.00026592,2]
[385887362,1758097835338,-150.0,0.00026592,2]
[385887363,1758097835351,-500.0,0.00026592,2]
[385887364,1758097835361,-500.0,0.00026592,2]
[385887365,1758097835370,-150.0,0.00026592,2]
[385887366,1758097835380,-150.0,0.00026592,2]
[385887367,1758097835390,-1000.0,0.00026593,2]
[385887368,1758097835401,-1000.0,0.000266,2]
[385887369,1758097835410,-700.0,0.000266,9]
[385887370,1758097835419,-200.0,0.00026632,2]
[385887371,1758097835428,-18116.3795495,0.00026642,2]
[385887372,1758097835438,-4327.562839,0.00026645,2]
[385887373,1758097835447,-18712.1816251,0.00026652,2]
[385887377,1758097838218,-666.0,0.00024474,3]
[385887378,1758097838228,-500.0,0.00025786,2]
[385887379,1758097838238,-500.0,0.00025786,2]
[385887380,1758097838249,-20171.48718219,0.00026652,2]
[385887381,1758097838272,-763.49845034,0.00026652,2]
[385887382,1758097838337,-11373.77946305,0.00026652,2]
[385887383,1758097838388,-463.48,0.00026652,2]
[385887384,1758097838400,-447.35040707,0.00026652,2]
[385887385,1758097838445,-500.0,0.00021999,2]
[385887386,1758097838455,-1.21429963,0.00025786,2]
[385887387,1758097838467,-498.78570037,0.00025786,2]
[385887388,1758097838477,-782.7258461,0.00026652,2]
[385887439,1758097839106,-500.0,0.00021999,2]
[385887441,1758097839115,-4073.2,0.00026652,2]
[385887443,1758097839126,-1588.8,0.00026652,2]
[385887445,1758097839137,-930.54,0.00026652,2]
[385887492,1758097840191,-500.0,0.00021999,2]
[385887493,1758097840201,-420.85316,0.00021999,2]
[385887494,1758097840210,-500.0,0.00025786,2]
[385887495,1758097840220,-606.67572289,0.00026652,2]
[385887496,1758097840231,-899.37357666,0.00026652,2]
[385887497,1758097840240,-314.75806116,0.00026652,2]
[385887498,1758097840251,-413.4888655,0.00026652,2]
[385887499,1758097840262,-2885.09824476,0.00026652,2]
[385887500,1758097840350,-1160.69915288,0.00026652,2]
[385887501,1758097840360,-2952.81601279,0.00026652,2]
[385887502,1758097840375,-293.23247821,0.00026652,2]
[385887503,1758097840384,-620.12339359,0.00026652,2]
[385887504,1758097840464,-520.09317091,0.00026652,2]
[385887505,1758097840472,-704.82317334,0.00026652,2]
[385887659,1758097843366,-500.0,0.00025786,2]
[385887660,1758097843375,-500.0,0.00025786,2]
[385887661,1758097843384,-20839.62078906,0.00026652,2]
[385887662,1758097843394,-10253.0077446,0.00026652,2]
[385887663,1758097843403,-2150.0,0.00026652,2]
[385887664,1758097843412,-500.0,0.00026654,2]
[385887665,1758097843421,-461.96478205,0.00026654,2]
[385887666,1758097843430,-500.0,0.00026654,2]
[385887667,1758097843439,-500.0,0.00026654,2]
[385887668,1758097843448,-421.0,0.00026655,2]
[385887669,1758097843458,-512.0,0.00026655,2]
[385887670,1758097843467,-2744.0,0.00026655,2]
[385887671,1758097843476,-150.0,0.00026655,2]
[385887672,1758097843485,-272.3469586,0.00026655,2]
[385887673,1758097843494,-774.0,0.00026655,2]
[385887674,1758097843503,-500.0,0.00026655,2]
[385887675,1758097843512,-11006.53582099,0.00026665,2]
[385887676,1758097843522,-166.89,0.00026672,2]
[385887677,1758097843532,-1263.03798087,0.00026673,2]
[385887678,1758097843541,-200.0,0.00026673,2]
[385887679,1758097843551,-200.0,0.00026673,2]
[385887680,1758097843560,-200.0,0.00026673,2]
[385887681,1758097843570,-160.0,0.00026673,3]
[385887682,1758097843580,-544.0,0.00026673,3]
[385887683,1758097843589,-548.0,0.00026673,3]
[385887684,1758097843598,-235.66,0.00026675,2]
[385887685,1758097843608,-500.0,0.00026677,2]
[385887686,1758097843618,-500.0,0.00026677,2]
[385887687,1758097843627,-500.0,0.00026677,2]
[385887689,1758097843636,-500.0,0.00026677,2]
[385887691,1758097843646,-500.0,0.00026677,2]
[385887693,1758097843655,-500.0,0.00026677,2]
[385887695,1758097843664,-500.0,0.00026677,2]
[385887697,1758097843673,-150.0,0.00026677,2]
[385887699,1758097843683,-500.0,0.00026677,2]
[385887700,1758097843692,-500.0,0.00026677,2]
[385887701,1758097843701,-18116.3795495,0.0002669,2]
[385887702,1758097843710,-12014.2828239,0.00026693,2]
[385887703,1758097843720,-3282.1334022,0.00026693,2]
[385887704,1758097843729,-500.0,0.000267,2]
[385887705,1758097843738,-1100.0,0.000267,9]
[385887706,1758097843748,-12654.31610464,0.00026712,2]
[385887707,1758097843757,-11006.53582099,0.00026778,2]
[385887708,1758097843767,-90581.8977477,0.0002679,2]
[385887709,1758097843776,-191581.2247,0.000268,2]
[385887710,1758097843786,-1500.0,0.000268,9]
[385887711,1758097843795,-200.0,0.00026806,2]
[385887712,1758097843804,-1679.48340061,0.00026822,2]
[385887713,1758097843813,-151.0,0.00026825,2]
[385887714,1758097843822,-151.0,0.00026825,2]
[385887715,1758097843831,-151.0,0.00026825,2]
[385887716,1758097843840,-151.0,0.00026825,2]
[385887717,1758097843850,-979.945,0.00026839,14]
[385887718,1758097843860,-524.63,0.00026847,2]
[385887719,1758097843869,-150.0,0.00026866,2]
[385887720,1758097843878,-500.0,0.00026866,2]
[385887721,1758097843887,-500.0,0.00026866,2]
[385887722,1758097843897,-500.0,0.00026866,2]
[385887723,1758097843906,-150.0,0.00026866,2]
[385887725,1758097843915,-150.0,0.00026866,2]
[385887728,1758097843924,-226.0,0.00026874,7]
[385887731,1758097843936,-4327.562839,0.00026885,2]
[385887734,1758097843945,-11006.53582099,0.00026892,2]
[385887736,1758097843954,-226.0,0.00026892,2]
[385887738,1758097843964,-1900.0,0.000269,9]
[385887740,1758097843973,-168.0,0.0002692,2]
[385887742,1758097843983,-500.0,0.00026928,2]
[385887744,1758097843992,-500.0,0.00026928,2]
[385887746,1758097844002,-500.0,0.00026928,2]
[385887748,1758097844011,-421.0,0.00026929,2]
[385887749,1758097844021,-512.0,0.00026929,2]
[385887751,1758097844030,-2744.0,0.00026929,2]
[385887753,1758097844040,-178.9943832,0.00026929,2]
[385887755,1758097844049,-774.0,0.00026929,2]
[385887757,1758097844058,-500.0,0.00026929,2]
[385887759,1758097844068,-200.0,0.0002694,2]
[385887762,1758097844077,-200.0,0.0002694,2]
[385887763,1758097844086,-200.0,0.0002694,2]
[385887766,1758097844097,-18116.3795495,0.00026941,2]
[385887768,1758097844106,-500.0,0.00026951,2]
[385887769,1758097844115,-607.32049549,0.00026951,2]
[385887772,1758097844124,-500.0,0.00026951,2]
[385887773,1758097844133,-500.0,0.00026951,2]
[385887775,1758097844143,-500.0,0.00026951,2]
[385887777,1758097844152,-500.0,0.00026951,2]
[385887779,1758097844161,-500.0,0.00026951,2]
[385887781,1758097844170,-500.0,0.00026951,2]
[385887782,1758097844179,-500.0,0.00026951,2]
[385887783,1758097844188,-200.0,0.00026978,2]
[385887784,1758097844197,-72465.5181982,0.0002699,2]
[385887785,1758097844207,-26605.3715232,0.0002699,2]
[385887786,1758097844216,-151.0,0.0002699,7]
[385887787,1758097844225,-151.0,0.0002699,7]
[385887788,1758097844234,-151.0,0.0002699,7]
[385887789,1758097844243,-151.0,0.0002699,7]
[385887790,1758097844253,-151.0,0.0002699,7]
[385887791,1758097844263,-151.0,0.0002699,7]
[385887792,1758097844271,-151.0,0.0002699,7]
[385887793,1758097844280,-151.0,0.0002699,7]
[385887794,1758097844290,-151.0,0.0002699,7]
[385887795,1758097844301,-206.29805,0.0002699,2]
[385887796,1758097844310,-151.0,0.0002699,7]
[385887797,1758097844320,-502.0,0.00027,2]
[385887798,1758097844331,-140025.35092278,0.00027,2]
[385887799,1758097844340,-160.77642314,0.00027,2]
[385887800,1758097844349,-11006.53582099,0.00027005,2]
[385887801,1758097844359,-823.0,0.00027028,2]
[385887802,1758097844368,-2956.15239147,0.00027035,2]
[385887803,1758097844377,-151.0,0.00027045,7]
[385887804,1758097844386,-151.0,0.00027045,7]
[385887805,1758097844395,-165.424705,0.00027045,7]
[385887806,1758097844404,-151.0,0.00027045,7]
[385887807,1758097844414,-151.0,0.00027045,7]
[385887808,1758097844423,-151.0,0.00027045,7]
[385887809,1758097844432,-151.0,0.00027045,7]
[385887810,1758097844441,-151.0,0.00027045,7]
[385887811,1758097844451,-290.229921,0.00027045,7]
[385887812,1758097844460,-151.0,0.00027045,7]
[385887813,1758097844469,-216.0,0.00027061,7]
[385887814,1758097844478,-527.0,0.0002708,2]
[385887815,1758097844487,-296.29,0.00027081,2]
[385887816,1758097844496,-2956.15239147,0.00027089,2]
[385887817,1758097844505,-18116.3795495,0.00027095,2]
[385887818,1758097844515,-2956.15239147,0.00027095,2]
[385887819,1758097844524,-150.0,0.00027098,7]
[385887820,1758097844533,-160.0,0.00027098,2]
[385887821,1758097844542,-2810.01060306,0.00027098,2]
[385887822,1758097844551,-334.5472959,0.00027098,2]
[385887823,1758097844561,-267.46074303,0.00027098,2]
[385887824,1758097844571,-200.0,0.000271,7]
[385887825,1758097844580,-1012.0,0.000271,2]
[385887826,1758097844589,-151.0,0.00027109,7]
[385887827,1758097844598,-151.0,0.00027109,7]
[385887828,1758097844607,-151.0,0.00027109,7]
[385887829,1758097844616,-151.0,0.00027109,7]
[385887830,1758097844625,-158.811908,0.00027109,7]
[385887831,1758097844634,-11006.53582099,0.00027118,2]
[385887832,1758097844643,-4327.562839,0.00027125,2]
[385887833,1758097844653,-2956.15239147,0.00027134,2]
[385887834,1758097844662,-2956.15239147,0.00027135,2]
[385887835,1758097844671,-152.26027051,0.0002714,2]
[385887836,1758097844681,-500.0,0.0002714,2]
[385887837,1758097844690,-405.90007015,0.0002714,2]
[385887838,1758097844699,-500.0,0.0002714,2]
[385887839,1758097844709,-150.0,0.0002714,2]
[385887840,1758097844718,-150.0,0.0002714,2]
[385887841,1758097844728,-1943.0,0.00027142,2]
[385887842,1758097844738,-18116.3795495,0.00027161,2]
[385887843,1758097844747,-151.0,0.00027161,7]
[385887844,1758097844756,-151.0,0.00027161,7]
[385887845,1758097844766,-151.0,0.00027161,7]
[385887846,1758097844775,-151.0,0.00027161,7]
[385887847,1758097844785,-151.0,0.00027161,7]
[385887848,1758097844794,-231.718331,0.00027161,7]
[385887849,1758097844804,-151.0,0.00027161,7]
[385887850,1758097844814,-151.0,0.00027161,7]
[385887851,1758097844823,-151.57,0.00027167,2]
[385887852,1758097844833,-150.0,0.0002717,2]
[385887853,1758097844842,-263.16213814,0.00027171,2]
[385887854,1758097844852,-517.77786663,0.00027173,2]
[385887855,1758097844861,-501.09720928,0.00027173,2]
[385887856,1758097844871,-500.0,0.00027173,2]
[385887857,1758097844880,-500.0,0.00027173,2]
[385887858,1758097844890,-414.85669483,0.00027173,2]
[385887859,1758097844899,-500.0,0.00027173,2]
[385887860,1758097844909,-504.39157314,0.00027173,2]
[385887861,1758097844919,-500.0,0.00027173,2]
[385887862,1758097844928,-502.95861149,0.00027173,2]
[385887863,1758097844938,-500.0,0.00027173,2]
[385887864,1758097844947,-500.0,0.00027173,2]
[385887865,1758097844957,-1011.67543445,0.00027173,2]
[385887866,1758097844967,-335.40272508,0.00027173,2]
[385887867,1758097844977,-407.64331202,0.00027175,2]
[385887868,1758097844988,-5912.30478294,0.00027177,2]
[385887869,1758097844997,-479.88389896,0.00027177,2]
[385887870,1758097845006,-552.1244859,0.00027179,2]
[385887871,1758097845016,-1305.32321267,0.0002718,2]
[385887872,1758097845025,-624.36507284,0.00027181,2]
[385887873,1758097845035,-696.60565978,0.00027183,2]
[385887874,1758097845044,-382.02814599,0.00027184,2]
[385887875,1758097845054,-768.84624672,0.00027185,2]
[385887876,1758097845063,-608.53703758,0.00027185,2]
[385887877,1758097845073,-14814.075924,0.00027186,2]
[385887878,1758097845082,-239611.46587937,0.00027186,3]
[385887879,1758097845091,-151.0,0.00027186,7]
[385887880,1758097845100,-151.0,0.00027186,7]
[385887881,1758097845110,-144931.036396,0.00027187,2]
[385887882,1758097845119,-67991.5050038,0.00027187,2]
[385887883,1758097845128,-8868.45717441,0.00027187,2]
[385887884,1758097845137,-841.08683364,0.00027187,2]
[385887885,1758097845147,-151.0,0.00027187,7]
[385887886,1758097845156,-151.0,0.00027187,7]
[385887887,1758097845165,-181.777705,0.00027187,7]
[385887888,1758097845175,-1269300.8409047,0.00027197,2]
[385887889,1758097845184,-1000.0,0.00027197,2]
[385887890,1758097845194,-1000.0,0.00027197,2]
[385887891,1758097845203,-1000.0,0.00027197,2]
[385887892,1758097845213,-1000.0,0.00027197,2]
[385887893,1758097845222,-1000.0,0.00027197,2]
[385887894,1758097845232,-1000.0,0.00027197,2]
[385887895,1758097845241,-1000.0,0.00027197,2]
[385887896,1758097845252,-1000.0,0.00027197,2]
[385887897,1758097845262,-1000.0,0.00027197,2]
[385887898,1758097845272,-1000.0,0.00027197,2]
[385887899,1758097845281,-1000.0,0.00027197,2]
[385887900,1758097845291,-1000.0,0.00027197,2]
[385887901,1758097845300,-1000.0,0.00027197,2]
[385887902,1758097845310,-1000.0,0.00027197,2]
[385887903,1758097845319,-1000.0,0.00027197,2]
[385887904,1758097845328,-1000.0,0.00027197,2]
[385887905,1758097845337,-1000.0,0.00027197,2]
[385887906,1758097845346,-1000.0,0.00027197,2]
[385887907,1758097845355,-1000.0,0.00027197,2]
[385887908,1758097845364,-917.80422188,0.00027197,2]
[385887909,1758097845373,-151.0,0.00027197,7]
[385887910,1758097845382,-151.0,0.00027197,7]
[385887911,1758097845391,-151.0,0.00027197,7]
[385887912,1758097845400,-151.0,0.00027197,7]
[385887913,1758097845409,-151.0,0.00027197,7]
[385887914,1758097845418,-151.0,0.00027197,7]
[385887915,1758097845428,-151.0,0.00027197,7]
[385887916,1758097845437,-151.0,0.00027197,7]
[385887917,1758097845446,-164.712236,0.00027197,7]
[385887918,1758097845455,-151.0,0.00027197,7]
[385887919,1758097845464,-151.0,0.00027197,7]
[385887920,1758097845473,-500.0,0.00027202,2]
[385887921,1758097845482,-500.0,0.00027202,2]
[385887922,1758097845491,-500.0,0.00027202,2]
[385887923,1758097845502,-500.0,0.00027202,2]
[385887924,1758097845511,-421.0,0.00027203,2]
[385887925,1758097845520,-512.0,0.00027203,2]
[385887926,1758097845530,-2744.0,0.00027203,2]
[385887927,1758097845539,-774.0,0.00027203,2]
[385887928,1758097845549,-500.0,0.00027203,2]
[385887929,1758097845558,-200.0,0.00027209,2]
[385887930,1758097845567,-200.0,0.00027209,2]
[385887931,1758097845576,-200.0,0.00027209,2]
[385887932,1758097845586,-500.0,0.00027225,2]
[385887933,1758097845595,-373.88145701,0.00027225,2]
[385887934,1758097845605,-500.0,0.00027225,2]
[385887935,1758097845615,-500.0,0.00027225,2]
[385887936,1758097845624,-500.0,0.00027225,2]
[385887937,1758097845635,-500.0,0.00027225,2]
[385887938,1758097845644,-500.0,0.00027225,2]
[385887939,1758097845653,-328.15135777,0.00027225,2]
[385887940,1758097845662,-480.25038738,0.00027227,2]
[385887941,1758097845672,-151.0,0.00027229,7]
[385887942,1758097845682,-151.0,0.00027229,7]
[385887943,1758097845692,-151.0,0.00027229,7]
[385887944,1758097845701,-151.0,0.00027229,7]
[385887945,1758097845711,-151.0,0.00027229,7]
[385887946,1758097845720,-151.0,0.00027229,7]
[385887947,1758097845729,-160.0,0.0002723,3]
[385887948,1758097845738,-160.0,0.0002723,3]
[385887949,1758097845748,-213.18994792,0.0002723,3]
[385887950,1758097845758,-516.07479255,0.0002723,3]
[385887951,1758097845767,-11006.53582099,0.00027231,2]
[385887952,1758097845778,-472.0,0.00027233,2]
[385887953,1758097845788,-6497.84778365,0.00027234,2]
[385887954,1758097845798,-150.0,0.00027254,2]
[385887955,1758097845807,-270.29650823,0.00027255,2]
[385887956,1758097845816,-344.4955497,0.00027257,2]
[385887957,1758097845826,-418.69459117,0.00027259,2]